[Event "1.FrauenBL 2018-19"]
[Site "Berlin"]
[Date "2019.03.03"]
[Round "11"]
[White "Schleining, Zoya"]
[Black "Muetsch, Annmarie"]
[Result "1-0"]
[ECO "E90"]
[WhiteElo "2344"]
[BlackElo "2249"]
[Annotator "NA"]
[PlyCount "90"]
[EventDate "2018.10.27"]
[EventType "team-tourn"]
[EventCountry "GER"]
[SourceTitle "playchess.com"]
[Source "ChessBase"]
[SourceQuality "1"]
[WhiteTeam "SF Deizisau"]
[BlackTeam "Karlsruher SF"]
[TimeControl "40/5400+30:1800+30"]

1. d4 {[%emt 0:00:04]} Nf6 {[%emt 0:00:06]} 2. Nf3 {[%emt 0:00:07]} g6 {[%emt 0:00:08]} 3. c4 {[%emt 0:00:22]} Bg7 {[%emt 0:00:08]} 4. Nc3 {[%emt 0:00:06]} O-O {[%emt 0:00:13]} 5. e4 {[%emt 0:00:20]} d6 {[%emt 0:00:07]} 6. Be3 {[%emt 0:00:23]} e5 {[%emt 0:00:39]} 7. d5 {[%emt 0:02:09]} Ng4 {[%emt 0:03:19]} 8. Bg5 {[%emt 0:00:20]} f6 {[%emt 0:00:12]} 9. Bh4 {[%emt 0:00:48]} h5 {[%emt 0:01:16]} 10. h3 {[%emt 0:00:30]} Nh6 {[%emt 0:00:05]} 11. Nd2 {[%emt 0:01:18]} c5 {[%emt 0:07:28]} 12. Be2 {[%emt 0:04:33]} Na6 {[%emt 0:04:12]} 13. a3 {[%emt 0:10:40]} Nf7 {[%emt 0:11:01]} 14. g4 {[%emt 0:28:02]} hxg4 {[%emt 0:09:58]} 15. Bxg4 {[%emt 0:00:35]} Nh6 {[%emt 0:05:44]} 16. Bxc8 {[%emt 0:02:33]} Qxc8 {[%emt 0:00:20]} 17. Qe2 {[%emt 0:05:10]} g5 {[%emt 0:07:12]} 18. Bg3 {[%emt 0:00:10]} Kf7 {[%emt 0:03:01]} 19. Nf1 {[%emt 0:05:58]} Ke7 {[%emt 0:04:19]} 20. h4 {[%emt 0:07:46]} g4 {[%emt 0:01:44]} 21. Ne3 {[%emt 0:00:37]} Qd7 {[%emt 0:03:44]} 22. h5 {[%emt 0:02:00]} Rg8 {[%emt 0:01:57]} 23. Bh4 {[%emt 0:05:00]} Nc7 {[%emt 0:00:30]} 24. O-O-O {[%emt 0:03:33]} b5 {[%emt 0:03:41]} 25. cxb5 {[%emt 0:01:10]} Rab8 {[%emt 0:00:11]} 26. a4 {[%emt 0:04:15]} a6 {[%emt 0:00:14]} 27. bxa6 {[%emt 0:01:07]} Ra8 {[%emt 0:04:09]} 28. f3 {[%emt 0:00:52]} g3 {[%emt 0:04:35]} 29. Rdg1 {[%emt 0:00:26]} Bh8 {[%emt 0:00:50]} 30. Rxg3 {[%emt 0:01:16]} Rxg3 {[%emt 0:00:09]} 31. Bxg3 {[%emt 0:00:02]} Nxa6 {[%emt 0:01:04]} 32. Qb5 {[%emt 0:02:44]} Qa7 {[%emt 0:01:32]} 33. Nc4 {[%emt 0:02:46]} Nb4 {[%emt 0:02:00]} 34. Qb6 {[%emt 0:01:23]} Qd7 {[%emt 0:02:12]} 35. Qb5 {[%emt 0:02:37]} Qc7 {[%emt 0:03:14]} 36. Qb6 {[%emt 0:00:34]} Qd7 {[%emt 0:00:19]} 37. Na5 {[%emt 0:02:17]} Ra6 {[%emt 0:03:43]} 38. Nc6+ {[%emt 0:00:19]} Qxc6 {[%emt 0:01:00]} 39. Qxc6 {[%emt 0:00:09]} Nxc6 {[%emt 0:00:04]} 40. dxc6 {[%emt 0:00:10]} Rxc6 {[%emt 0:00:08]} 41. b3 {[%emt 0:32:50]} Bg7 {[%emt 0:36:02]} 42. Bf2 {[%emt 0:02:03]} Nf7 {[%emt 0:00:00]} 43. Be3 {[%emt 0:00:00]} Bf8 44. Z0 Rb6 45. Nb1 Z0 {Ra7 [%clk ] --- [%clk ] b7 [%clk ]} 1-0

[Event "1.FrauenBL 2018-19"]
[Site "Berlin"]
[Date "2019.03.03"]
[Round "11"]
[White "Zschischang, Marine"]
[Black "Pralle, Katharina"]
[Result "1-0"]
[ECO "D36"]
[WhiteElo "2069"]
[BlackElo "1979"]
[Annotator "NA"]
[PlyCount "69"]
[EventDate "2018.10.27"]
[EventType "team-tourn"]
[EventCountry "GER"]
[SourceTitle "playchess.com"]
[Source "ChessBase"]
[SourceQuality "1"]
[WhiteTeam "SK Lehrte"]
[BlackTeam "Hofheim"]
[TimeControl "40/5400+30:1800+30"]

1. d4 {[%emt 0:00:01]} d5 {[%emt 0:00:00]} 2. c4 {[%emt 0:00:04]} e6 {[%emt 0:00:17]} 3. Nc3 {[%emt 0:00:02]} Nf6 {[%emt 0:00:21]} 4. Bg5 {[%emt 0:00:01]} Nbd7 {[%emt 0:01:23]} 5. cxd5 {[%emt 0:00:05]} exd5 {[%emt 0:00:05]} 6. e3 {[%emt 0:00:06]} c6 {[%emt 0:00:17]} 7. Nf3 {[%emt 0:00:57]} Be7 {[%emt 0:02:39]} 8. Bd3 {[%emt 0:00:00]} h6 {[%emt 0:01:56]} 9. Bh4 {[%emt 0:00:32]} O-O {[%emt 0:00:43]} 10. Qc2 {[%emt 0:00:03]} Re8 {[%emt 0:02:13]} 11. h3 {[%emt 0:00:04]} b6 {[%emt 0:09:24]} 12. O-O {[%emt 0:02:53]} Bb7 {[%emt 0:01:17]} 13. Bg3 {[%emt 0:08:47]} c5 {[%emt 0:09:18]} 14. Nb5 {[%emt 0:06:51]} Rf8 {[%emt 0:13:07]} 15. Nd6 {[%emt 0:05:07]} Bc6 {[%emt 0:00:52]} 16. Nf5 {[%emt 0:13:16]} c4 {[%emt 0:09:21]} 17. Nxe7+ {[%emt 0:03:49]} Qxe7 {[%emt 0:00:09]} 18. Bh4 {[%emt 0:26:28]} Rac8 {[%emt 0:20:01]} 19. Bf5 {[%emt 0:04:24]} g6 {[%emt 0:06:13]} 20. Bg4 {[%emt 0:03:16]} h5 {[%emt 0:02:05]} 21. Bxd7 {[%emt 0:03:01]} Bxd7 {[%emt 0:00:09]} 22. Ne5 {[%emt 0:00:42]} Kg7 {[%emt 0:07:33]} 23. f3 {[%emt 0:06:30]} Qe8 {[%emt 0:05:28]} 24. e4 {[%emt 0:02:43]} Be6 {[%emt 0:01:07]} 25. Rae1 {[%emt 0:03:51]} Qb5 {[%emt 0:02:41]} 26. a4 {[%emt 0:02:35]} Qb4 {[%emt 0:01:12]} 27. Bxf6+ {[%emt 0:00:23]} Kxf6 {[%emt 0:00:06]} 28. exd5 {[%emt 0:00:03]} Bxd5 {[%emt 0:00:19]} 29. Nd7+ {[%emt 0:00:06]} Kg7 {[%emt 0:00:18]} 30. Nxf8 {[%emt 0:00:16]} Rxf8 {[%emt 0:00:40]} 31. Re5 {[%emt 0:05:07]} Bc6 {[%emt 0:00:44]} 32. Ra1 {[%emt 0:00:22]} Rd8 {[%emt 0:00:38]} 33. Qc3 {[%emt 0:00:10]} Qd6 {[%emt 0:01:47]} 34. d5 {[%emt 0:02:26]} f6 {[%emt 0:01:37]} 35. Re6 {[%emt 0:00:18]} 1-0

[Event "1.FrauenBL 2018-19"]
[Site "Berlin"]
[Date "2019.03.03"]
[Round "11.1"]
[White "Schmidt, Jessica"]
[Black "Klek, Hanna Marie"]
[Result "1/2-1/2"]
[ECO "D37"]
[WhiteElo "2240"]
[BlackElo "2313"]
[Annotator "NA"]
[PlyCount "118"]
[EventDate "2018.10.27"]
[EventType "team-tourn"]
[EventCountry "GER"]
[SourceTitle "playchess.com"]
[Source "ChessBase"]
[SourceQuality "1"]
[WhiteTeam "Karlsruher SF"]
[BlackTeam "SF Deizisau"]
[TimeControl "40/5400+30:1800+30"]

1. d4 {[%emt 0:00:02]} d5 {[%emt 0:00:05]} 2. c4 {[%emt 0:00:07]} e6 {[%emt 0:00:04]} 3. Nf3 {[%emt 0:00:19]} a6 {[%emt 0:00:05]} 4. cxd5 {[%emt 0:01:02]} exd5 {[%emt 0:00:07]} 5. Nc3 {[%emt 0:00:06]} Nf6 6. Bg5 {[%emt 0:00:32]} Be6 {[%emt 0:00:20]} 7. e3 {[%emt 0:00:28]} Bd6 {[%emt 0:01:25]} 8. Bd3 {[%emt 0:00:00]} O-O {[%emt 0:00:06]} 9. O-O {[%emt 0:04:06]} h6 {[%emt 0:04:00]} 10. Bh4 {[%emt 0:00:21]} Nbd7 {[%emt 0:00:00]} 11. Rc1 {[%emt 0:00:56]} Rc8 {[%emt 0:12:55]} 12. Bg3 {[%emt 0:11:08]} Bxg3 {[%emt 0:04:02]} 13. hxg3 {[%emt 0:00:00]} Ne8 {[%emt 0:00:14]} 14. Ne2 {[%emt 0:00:00]} Nb6 {[%emt 0:08:27]} 15. Ne5 {[%emt 0:04:01]} Nd6 {[%emt 0:00:00]} 16. Nf4 {[%emt 0:10:42]} Bf5 {[%emt 0:04:55]} 17. Bxf5 {[%emt 0:00:00]} Nxf5 {[%emt 0:01:13]} 18. Qb3 {[%emt 0:04:09]} Re8 {[%emt 0:14:12]} 19. Rfd1 {[%emt 0:14:11]} f6 {[%emt 0:00:00]} 20. Neg6 {[%emt 0:05:24]} Ne7 {[%emt 0:00:00]} 21. Ne6 {[%emt 0:00:00]} Qd6 {[%emt 0:11:44]} 22. Nxe7+ {[%emt 0:00:00]} Rxe7 {[%emt 0:00:31]} 23. Nc5 {[%emt 0:00:00]} Rb8 {[%emt 0:00:00]} 24. a4 {[%emt 0:00:00]} Qd8 {[%emt 0:15:25]} 25. e4 {[%emt 0:10:14]} c6 {[%emt 0:01:02]} 26. Re1 {[%emt 0:03:16]} a5 {[%emt 0:04:32]} 27. Nd3 {[%emt 0:14:20]} Kh8 {[%emt 0:04:26]} 28. e5 {[%emt 0:00:00]} Nd7 {[%emt 0:00:59]} 29. Nf4 {[%emt 0:00:00]} Nf8 {[%emt 0:00:08]} 30. Qc3 {[%emt 0:00:01]} fxe5 {[%emt 0:01:01]} 31. dxe5 {[%emt 0:00:10]} Qb6 {[%emt 0:00:00]} 32. Qc5 {[%emt 0:05:10]} Qxc5 {[%emt 0:03:54]} 33. Rxc5 {[%emt 0:05:07]} Ra8 {[%emt 0:02:42]} 34. Rc3 {[%emt 0:01:27]} Kh7 {[%emt 0:00:30]} 35. Nd3 {[%emt 0:01:45]} Ne6 {[%emt 0:01:07]} 36. f4 {[%emt 0:00:18]} h5 {[%emt 0:00:00]} 37. Nc5 {[%emt 0:02:28]} Nxc5 {[%emt 0:03:11]} 38. Rxc5 {[%emt 0:00:06]} Kg6 {[%emt 0:00:08]} 39. Kf2 {[%emt 0:01:34]} Kf5 {[%emt 0:00:08]} 40. Rh1 {[%emt 0:00:18]} g6 {[%emt 0:00:09]} 41. Kf3 {[%emt 0:30:20]} Ra6 {[%emt 0:08:04]} 42. Rh4 {[%emt 0:00:00]} Rh7 {[%emt 0:06:47]} 43. g4+ {[%emt 0:00:00]} hxg4+ {[%emt 0:00:52]} 44. Rxg4 {[%emt 0:00:00]} Rh5 {[%emt 0:03:43]} 45. Rc3 {[%emt 0:00:00]} Rb6 {[%emt 0:00:26]} 46. b3 {[%emt 0:00:00]} c5 {[%emt 0:07:20]} 47. e6 {[%emt 0:00:00]} Kf6 {[%emt 0:05:42]} 48. Rxc5 {[%emt 0:00:00]} Rxb3+ {[%emt 0:00:09]} 49. Ke2 {[%emt 0:02:42]} Rb4 {[%emt 0:02:28]} 50. Rxa5 {[%emt 0:00:00]} Re4+ {[%emt 0:00:11]} 51. Kd3 {[%emt 0:00:00]} Rxe6 {[%emt 0:00:07]} 52. Rb5 {[%emt 0:01:30]} b6 {[%emt 0:00:00]} 53. Rg3 {[%emt 0:01:32]} Rh1 {[%emt 0:01:36]} 54. Re3 {[%emt 0:01:20]} Rd6 {[%emt 0:00:52]} 55. a5 {[%emt 0:01:59]} bxa5 {[%emt 0:00:24]} 56. Rxa5 {[%emt 0:00:04]} Rf1 {[%emt 0:01:08]} 57. g3 {[%emt 0:00:21]} d4 {[%emt 0:00:43]} 58. Ke2 {[%emt 0:02:15]} Rxf4 {[%emt 0:01:02]} 59. gxf4 {[%emt 0:00:06]} dxe3 {[%emt 0:00:00]} 1/2-1/2

[Event "1.FrauenBL 2018-19"]
[Site "Berlin"]
[Date "2019.03.03"]
[Round "11.1"]
[White "Schneider, Jana"]
[Black "Burchardt, Brigitte"]
[Result "1-0"]
[ECO "B55"]
[WhiteElo "2201"]
[BlackElo "2158"]
[Annotator "NA"]
[PlyCount "125"]
[EventDate "2018.10.27"]
[EventType "team-tourn"]
[EventCountry "GER"]
[SourceTitle "playchess.com"]
[Source "ChessBase"]
[SourceQuality "1"]
[WhiteTeam "Bad Koenigshofen"]
[BlackTeam "Pankow"]
[TimeControl "40/5400+30:1800+30"]

1. e4 {[%emt 0:00:00]} c5 {[%emt 0:00:12]} 2. Nf3 {[%emt 0:00:12]} d6 {[%emt 0:00:05]} 3. d4 {[%emt 0:00:06]} cxd4 {[%emt 0:00:03]} 4. Nxd4 {[%emt 0:00:08]} Nf6 {[%emt 0:00:06]} 5. f3 {[%emt 0:00:00]} e5 {[%emt 0:14:57]} 6. Nb3 {[%emt 0:00:23]} Be6 {[%emt 0:00:00]} 7. c4 {[%emt 0:00:41]} Nbd7 {[%emt 0:00:00]} 8. Nc3 {[%emt 0:00:36]} Be7 {[%emt 0:10:39]} 9. Be3 {[%emt 0:23:56]} O-O {[%emt 0:00:43]} 10. Be2 {[%emt 0:00:00]} Ne8 {[%emt 0:00:00]} 11. O-O {[%emt 0:00:00]} Nc5 {[%emt 0:22:47]} 12. Nd5 {[%emt 0:00:00]} Bxd5 {[%emt 0:02:42]} 13. cxd5 {[%emt 0:00:00]} b6 {[%emt 0:04:23]} 14. Nd2 {[%emt 0:30:35]} Bg5 {[%emt 0:02:11]} 15. Bxg5 {[%emt 0:00:00]} Qxg5 {[%emt 0:00:05]} 16. b4 {[%emt 0:00:00]} Qe3+ {[%emt 0:01:54]} 17. Kh1 {[%emt 0:00:00]} Nd3 {[%emt 0:01:04]} 18. Bxd3 {[%emt 0:05:14]} Qxd3 {[%emt 0:00:00]} 19. Rc1 {[%emt 0:00:00]} Nf6 {[%emt 0:00:00]} 20. Nc4 {[%emt 0:04:50]} Qxd1 {[%emt 0:05:53]} 21. Rfxd1 {[%emt 0:00:00]} Rfd8 {[%emt 0:00:00]} 22. Rc2 {[%emt 0:00:00]} Kf8 {[%emt 0:02:39]} 23. Rdc1 {[%emt 0:00:00]} g6 {[%emt 0:00:57]} 24. g4 {[%emt 0:04:39]} h6 {[%emt 0:01:05]} 25. Kg2 {[%emt 0:01:05]} Ke7 {[%emt 0:00:00]} 26. Na3 {[%emt 0:00:00]} Ne8 {[%emt 0:12:31]} 27. Rc6 {[%emt 0:12:31]} Rd7 {[%emt 0:01:31]} 28. Nc4 {[%emt 0:00:00]} Rb8 {[%emt 0:05:26]} 29. Kf2 {[%emt 0:00:00]} Ng7 {[%emt 0:00:06]} 30. Ne3 {[%emt 0:00:00]} h5 {[%emt 0:00:00]} 31. a4 {[%emt 0:05:45]} hxg4 {[%emt 0:05:08]} 32. fxg4 {[%emt 0:00:16]} Rf8 {[%emt 0:02:21]} 33. Rc8 {[%emt 0:02:02]} Rxc8 {[%emt 0:02:19]} 34. Rxc8 {[%emt 0:00:37]} Rd8 {[%emt 0:00:53]} 35. Rc6 {[%emt 0:00:54]} Rd7 {[%emt 0:01:03]} 36. Kf3 {[%emt 0:09:13]} g5 {[%emt 0:00:49]} 37. Nc2 {[%emt 0:00:49]} Ne8 {[%emt 0:00:31]} 38. b5 {[%emt 0:00:31]} Rb7 {[%emt 0:00:00]} 39. Nb4 {[%emt 0:00:00]} Nc7 {[%emt 0:03:20]} 40. Kg3 {[%emt 0:00:00]} Kd7 {[%emt 0:00:10]} 41. Rc2 {[%emt 0:28:14]} f6 {[%emt 0:30:56]} 42. h4 {[%emt 0:06:12]} gxh4+ {[%emt 0:00:00]} 43. Kxh4 {[%emt 0:00:00]} Ke7 {[%emt 0:00:00]} 44. Kh5 {[%emt 0:00:00]} Kf8 {[%emt 0:00:00]} 45. Kh6 {[%emt 0:00:00]} Ne8 {[%emt 0:00:00]} 46. Rc8 {[%emt 0:00:00]} Rd7 {[%emt 0:00:00]} 47. Nc6 {[%emt 0:00:00]} Kf7 {[%emt 0:00:00]} 48. Nd8+ {[%emt 0:00:00]} Ke7 {[%emt 0:00:00]} 49. Ne6 {[%emt 0:00:00]} Kf7 {[%emt 0:00:00]} 50. Ra8 {[%emt 0:00:00]} Re7 {[%emt 0:00:00]} 51. Nd8+ {[%emt 0:00:00]} Kg8 {[%emt 0:00:00]} 52. Nc6 {[%emt 0:00:00]} Rh7+ {[%emt 0:00:00]} 53. Kg6 {[%emt 0:00:00]} Rg7+ {[%emt 0:00:00]} 54. Kf5 {[%emt 0:00:00]} Kf8 {[%emt 0:00:00]} 55. Rxa7 {[%emt 0:00:00]} Rg5+ {[%emt 0:02:27]} 56. Ke6 {[%emt 0:00:00]} Rxg4 {[%emt 0:00:35]} 57. Rf7+ {[%emt 0:00:00]} Kg8 {[%emt 0:00:03]} 58. Ne7+ {[%emt 0:00:00]} Kh8 {[%emt 0:00:07]} 59. Rf8+ {[%emt 0:03:12]} Kh7 {[%emt 0:00:00]} 60. Rxe8 {[%emt 0:00:00]} Rxe4 {[%emt 0:00:43]} 61. Kxd6 {[%emt 0:00:00]} Rxa4 {[%emt 0:00:29]} 62. Kc7 {[%emt 0:01:12]} Kg7 {[%emt 0:00:41]} 63. d6 {[%emt 0:00:00]} 1-0

[Event "1.FrauenBL 2018-19"]
[Site "Berlin"]
[Date "2019.03.03"]
[Round "11.2"]
[White "Majdan, Joanna"]
[Black "Antolak, Julia"]
[Result "0-1"]
[ECO "B80"]
[WhiteElo "2387"]
[BlackElo "2207"]
[Annotator "NA"]
[PlyCount "72"]
[EventDate "2018.10.27"]
[EventType "team-tourn"]
[EventCountry "GER"]
[SourceTitle "playchess.com"]
[Source "ChessBase"]
[SourceQuality "1"]
[WhiteTeam "Rodewischer SM"]
[BlackTeam "TuRa Harksheide"]
[TimeControl "40/5400+30:1800+30"]

1. e4 {[%emt 0:00:02]} c5 {[%emt 0:00:06]} 2. Nc3 {[%emt 0:00:05]} e6 {[%emt 0:00:00]} 3. Nf3 {[%emt 0:00:04]} d6 {[%emt 0:00:37]} 4. d4 {[%emt 0:00:32]} cxd4 {[%emt 0:00:04]} 5. Nxd4 {[%emt 0:00:04]} Nf6 {[%emt 0:00:04]} 6. Be3 {[%emt 0:00:04]} a6 {[%emt 0:00:29]} 7. f3 {[%emt 0:01:22]} b5 {[%emt 0:00:23]} 8. g4 {[%emt 0:00:00]} h6 {[%emt 0:02:14]} 9. Qd2 {[%emt 0:01:52]} Nbd7 {[%emt 0:09:29]} 10. a3 {[%emt 0:09:21]} Nb6 {[%emt 0:01:45]} 11. Qf2 {[%emt 0:00:49]} Nfd7 {[%emt 0:00:55]} 12. f4 {[%emt 0:01:27]} Bb7 {[%emt 0:04:15]} 13. f5 {[%emt 0:04:39]} e5 {[%emt 0:06:34]} 14. Ne6 {[%emt 0:01:22]} fxe6 {[%emt 0:00:00]} 15. fxe6 {[%emt 0:00:19]} Qf6 {[%emt 0:04:01]} 16. exd7+ {[%emt 0:01:38]} Nxd7 {[%emt 0:00:06]} 17. Qe2 {[%emt 0:05:32]} Qg6 {[%emt 0:08:38]} 18. O-O-O {[%emt 0:10:58]} Rc8 {[%emt 0:00:00]} 19. Rg1 {[%emt 0:02:01]} Be7 {[%emt 0:12:00]} 20. Bh3 {[%emt 0:07:31]} Bg5 {[%emt 0:04:21]} 21. Bxg5 {[%emt 0:06:19]} hxg5 {[%emt 0:00:48]} 22. Rg3 {[%emt 0:00:34]} Nc5 {[%emt 0:02:20]} 23. Re3 {[%emt 0:04:46]} O-O {[%emt 0:05:27]} 24. b4 {[%emt 0:03:18]} Ne6 {[%emt 0:07:22]} 25. Rxd6 Qf7 {[%emt 0:00:00]} 26. Rd1 {[%emt 0:08:54]} Nd4 {[%emt 0:00:00]} 27. Qd2 {[%emt 0:01:22]} Rfd8 {[%emt 0:05:30]} 28. Kb2 {[%emt 0:00:00]} a5 {[%emt 0:02:16]} 29. Nb1 {[%emt 0:05:45]} axb4 {[%emt 0:04:16]} 30. Bg2 {[%emt 0:03:22]} Qe7 {[%emt 0:00:00]} 31. Rd3 {[%emt 0:03:47]} bxa3+ 32. Nxa3 {[%emt 0:00:05]} b4 {[%emt 0:09:16]} 33. Nb5 {[%emt 0:00:35]} Ba6 {[%emt 0:00:00]} 34. Nxd4 {[%emt 0:05:57]} Bxd3 {[%emt 0:01:17]} 35. Nf5 {[%emt 0:00:00]} Qa7 {[%emt 0:00:13]} 36. cxd3 {[%emt 0:00:00]} Qa3+ {[%emt 0:00:05]} 0-1

[Event "1.FrauenBL 2018-19"]
[Site "Berlin"]
[Date "2019.03.03"]
[Round "11.2"]
[White "Misanovic, Vesna"]
[Black "Heinatz, Gundula"]
[Result "1-0"]
[ECO "B06"]
[WhiteElo "2249"]
[BlackElo "2174"]
[Annotator "NA"]
[PlyCount "109"]
[EventDate "2018.10.27"]
[EventType "team-tourn"]
[EventCountry "GER"]
[SourceTitle "playchess.com"]
[Source "ChessBase"]
[SourceQuality "1"]
[WhiteTeam "SF Deizisau"]
[BlackTeam "Karlsruher SF"]
[TimeControl "40/5400+30:1800+30"]

1. e4 {[%emt 0:00:06]} g6 {[%emt 0:00:17]} 2. d4 {[%emt 0:00:20]} Bg7 {[%emt 0:00:05]} 3. Bc4 {[%emt 0:02:06]} d6 {[%emt 0:07:30]} 4. Ne2 {[%emt 0:00:39]} Nf6 {[%emt 0:00:45]} 5. f3 {[%emt 0:01:21]} d5 {[%emt 0:02:53]} 6. exd5 {[%emt 0:02:58]} Nxd5 {[%emt 0:00:14]} 7. O-O {[%emt 0:03:08]} O-O {[%emt 0:01:19]} 8. Bb3 {[%emt 0:02:57]} c6 {[%emt 0:04:45]} 9. c4 {[%emt 0:04:21]} Nc7 {[%emt 0:06:05]} 10. Nbc3 {[%emt 0:02:13]} Nd7 {[%emt 0:05:02]} 11. Bg5 {[%emt 0:01:15]} Ne6 {[%emt 0:01:35]} 12. Be3 {[%emt 0:00:13]} a5 {[%emt 0:10:55]} 13. Qd2 {[%emt 0:10:45]} c5 {[%emt 0:08:54]} 14. d5 {[%emt 0:03:14]} Nc7 {[%emt 0:02:54]} 15. Rad1 {[%emt 0:03:30]} Ne8 {[%emt 0:01:06]} 16. Bc2 {[%emt 0:10:19]} Nd6 {[%emt 0:03:06]} 17. b3 {[%emt 0:00:07]} a4 {[%emt 0:00:06]} 18. Nxa4 {[%emt 0:00:40]} Rxa4 {[%emt 0:00:15]} 19. bxa4 {[%emt 0:00:26]} Nxc4 {[%emt 0:00:04]} 20. Qd3 {[%emt 0:00:00]} Nb2 {[%emt 0:06:40]} 21. Qb3 {[%emt 0:15:52]} Nxd1 {[%emt 0:01:42]} 22. Rxd1 {[%emt 0:00:22]} Qc7 {[%emt 0:00:29]} 23. Qb5 {[%emt 0:04:25]} Be5 {[%emt 0:07:18]} 24. h3 {[%emt 0:03:49]} Qd6 {[%emt 0:07:53]} 25. f4 {[%emt 0:03:14]} Bg7 {[%emt 0:00:23]} 26. a5 {[%emt 0:11:21]} Bh6 {[%emt 0:02:41]} 27. Bb3 {[%emt 0:02:27]} Rd8 {[%emt 0:03:09]} 28. Kh1 {[%emt 0:00:41]} Kf8 {[%emt 0:02:37]} 29. Rc1 {[%emt 0:06:07]} Kg8 {[%emt 0:03:48]} 30. Rc4 {[%emt 0:01:19]} Qxd5 {[%emt 0:04:55]} 31. Rxc5 {[%emt 0:00:56]} Qe4 {[%emt 0:00:28]} 32. Rxc8 {[%emt 0:00:17]} Rxc8 {[%emt 0:00:06]} 33. Qxd7 {[%emt 0:00:03]} Rf8 {[%emt 0:01:39]} 34. Qd4 {[%emt 0:00:31]} Qb1+ {[%emt 0:00:29]} 35. Kh2 {[%emt 0:00:09]} Bg7 {[%emt 0:00:37]} 36. Qd5 {[%emt 0:00:11]} Qe1 {[%emt 0:01:15]} 37. Qd2 {[%emt 0:00:24]} Qa1 {[%emt 0:00:31]} 38. Bc5 {[%emt 0:02:32]} Bf6 {[%emt 0:00:44]} 39. Qe3 {[%emt 0:00:38]} Qe1 {[%emt 0:01:29]} 40. Ng3 {[%emt 0:01:42]} Qxe3 {[%emt 0:01:29]} 41. Bxe3 {[%emt 0:30:23]} Ra8 {[%emt 0:02:33]} 42. Bd2 {[%emt 0:00:00]} Rd8 {[%emt 0:03:09]} 43. Ne4 {[%emt 0:00:00]} Bd4 {[%emt 0:01:10]} 44. Bb4 {[%emt 0:00:00]} Kg7 {[%emt 0:05:01]} 45. Nc5 {[%emt 0:00:00]} Rb8 {[%emt 0:04:36]} 46. Bd5 {[%emt 0:00:00]} e6 {[%emt 0:00:31]} 47. Bf3 {[%emt 0:00:00]} Be3 {[%emt 0:10:07]} 48. Kg3 {[%emt 0:00:00]} h5 {[%emt 0:03:29]} 49. h4 {[%emt 0:00:00]} Rc8 {[%emt 0:01:59]} 50. Nxb7 {[%emt 0:00:00]} Rc4 {[%emt 0:00:10]} 51. Bd6 {[%emt 0:00:00]} Ra4 {[%emt 0:00:51]} 52. a3 {[%emt 0:00:00]} Bc1 {[%emt 0:02:24]} 53. Bd1 {[%emt 0:00:00]} Rc4 {[%emt 0:02:13]} 54. a6 {[%emt 0:00:00]} Be3 {[%emt 0:00:25]} 55. Bb8 {[%emt 0:00:00]} 1-0

[Event "1.FrauenBL 2018-19"]
[Site "Berlin"]
[Date "2019.03.03"]
[Round "11.2"]
[White "Jahn, Constanze"]
[Black "Melamed, Tatjana"]
[Result "1/2-1/2"]
[ECO "B50"]
[WhiteElo "2063"]
[BlackElo "2359"]
[Annotator "NA"]
[PlyCount "57"]
[EventDate "2018.10.27"]
[EventType "team-tourn"]
[EventCountry "GER"]
[SourceTitle "playchess.com"]
[Source "ChessBase"]
[SourceQuality "1"]
[WhiteTeam "Pankow"]
[BlackTeam "Bad Koenigshofen"]
[TimeControl "40/5400+30:1800+30"]

1. e4 {[%emt 0:00:03]} c5 {[%emt 0:00:16]} 2. Nf3 {[%emt 0:00:03]} e6 {[%emt 0:00:54]} 3. b3 {[%emt 0:00:06]} d6 {[%emt 0:02:52]} 4. Bb5+ {[%emt 0:04:18]} Nd7 {[%emt 0:04:18]} 5. O-O {[%emt 0:04:16]} Be7 {[%emt 0:02:54]} 6. Bb2 {[%emt 0:01:03]} Ngf6 {[%emt 0:02:30]} 7. Re1 {[%emt 0:04:50]} O-O {[%emt 0:03:41]} 8. d4 {[%emt 0:03:41]} cxd4 {[%emt 0:02:40]} 9. Nxd4 {[%emt 0:01:09]} Nc5 {[%emt 0:03:41]} 10. Nd2 {[%emt 0:02:24]} a6 {[%emt 0:06:27]} 11. Bf1 {[%emt 0:01:13]} Re8 {[%emt 0:00:36]} 12. c4 {[%emt 0:06:28]} e5 {[%emt 0:06:43]} 13. Nc2 {[%emt 0:05:16]} Bf8 {[%emt 0:01:31]} 14. Nb4 {[%emt 0:05:58]} Bg4 {[%emt 0:08:59]} 15. Qc2 {[%emt 0:12:54]} Rc8 {[%emt 0:01:16]} 16. Nd3 {[%emt 0:01:56]} Nfd7 {[%emt 0:08:38]} 17. b4 {[%emt 0:05:34]} Nxd3 {[%emt 0:02:53]} 18. Qxd3 {[%emt 0:00:13]} a5 {[%emt 0:02:09]} 19. a3 {[%emt 0:00:42]} Be6 {[%emt 0:00:22]} 20. Rec1 {[%emt 0:13:48]} Qb6 {[%emt 0:03:03]} 21. Bc3 {[%emt 0:01:16]} g6 {[%emt 0:03:25]} 22. c5 {[%emt 0:02:49]} dxc5 {[%emt 0:05:20]} 23. bxa5 {[%emt 0:00:06]} Qc6 {[%emt 0:06:10]} 24. Nc4 {[%emt 0:00:38]} Red8 {[%emt 0:01:58]} 25. Qe3 {[%emt 0:01:45]} Qa4 {[%emt 0:04:29]} 26. Bd2 {[%emt 0:03:48]} Qc6 {[%emt 0:04:47]} 27. Bc3 {[%emt 0:00:36]} Qa4 {[%emt 0:01:12]} 28. Bd2 {[%emt 0:00:04]} Qc6 {[%emt 0:00:00]} 29. Bc3 {[%emt 0:00:03]} 1/2-1/2